{"text_format":"3","workbook":"xlsx","n_sheets":4,"sheets":["Итоги бюджета за истекший год","Сводка ежемесячных расходов","Расходы по категориям","Благотворительность,Спонсорство"],"not_rendered":{"defined_names":8,"comments":2},"read":"whole","date_system":"1900"}

{"sheet":"Итоги бюджета за истекший год","index":0,"n_rows":30,"n_cols":6,"rows_kept":30,"merged":[[1,0,1,5]]}
[]
["Сравнение бюджета с фактическими данными за 2005 год"]
[]
["Код главной книги","Название счета","Фактические данные","Бюджет","Остаток (руб.)","Остаток (%)"]
[]
[1000,"Реклама",{"$f":"'Сводка ежемесячных расходов'!O6","v":{"v":900900,"d":"900,900.00р."}},{"v":100000,"d":"100,000.00р."},{"$f":"SUM(+D6-C6)","v":{"v":-800900,"d":"-800,900.00р."}},{"$f":"SUM(E6/D6)","v":{"v":-8.009,"d":"-800.90%"}}]
[]
[2000,"Офисное оборудование",{"$f":"'Сводка ежемесячных расходов'!O8","v":0},{"v":100000,"d":"100,000.00р."},{"$f":"SUM(+D8-C8)","v":{"v":100000,"d":"100,000.00р."}},{"$f":"SUM(E8/D8)","v":{"v":1,"d":"100.00%"}}]
[]
[3000,"Принтеры",{"$f":"'Сводка ежемесячных расходов'!O10","v":0},{"v":100000,"d":"100,000.00р."},{"$f":"SUM(+D10-C10)","v":{"v":100000,"d":"100,000.00р."}},{"$f":"SUM(E10/D10)","v":{"v":1,"d":"100.00%"}}]
[]
[4000,"Затраты на серверы",{"$f":"'Сводка ежемесячных расходов'!O12","v":0},{"v":100000,"d":"100,000.00р."},{"$f":"SUM(+D12-C12)","v":{"v":100000,"d":"100,000.00р."}},{"$f":"SUM(E12/D12)","v":{"v":1,"d":"100.00%"}}]
[]
[5000,"Принадлежности",{"$f":"'Сводка ежемесячных расходов'!O14","v":0},{"v":50000,"d":"50,000.00р."},{"$f":"SUM(+D14-C14)","v":{"v":50000,"d":"50,000.00р."}},{"$f":"SUM(E14/D14)","v":{"v":1,"d":"100.00%"}}]
[]
[6000,"Затраты на клиентов",{"$f":"'Сводка ежемесячных расходов'!O16","v":0},{"v":25000,"d":"25,000.00р."},{"$f":"SUM(+D16-C16)","v":{"v":25000,"d":"25,000.00р."}},{"$f":"SUM(E16/D16)","v":{"v":1,"d":"100.00%"}}]
[]
[7000,"Компьютеры",{"$f":"'Сводка ежемесячных расходов'!O18","v":{"v":30000,"d":"30,000.00р."}},{"v":75000,"d":"75,000.00р."},{"$f":"SUM(+D18-C18)","v":{"v":45000,"d":"45,000.00р."}},{"$f":"SUM(E18/D18)","v":{"v":0.6,"d":"60.00%"}}]
[]
[8000,"План медицинского обслуживания",{"$f":"'Сводка ежемесячных расходов'!O20","v":0},{"v":65000,"d":"65,000.00р."},{"$f":"SUM(+D20-C20)","v":{"v":65000,"d":"65,000.00р."}},{"$f":"SUM(E20/D20)","v":{"v":1,"d":"100.00%"}}]
[]
[9000,"Затраты на строительство",{"$f":"'Сводка ежемесячных расходов'!O22","v":0},{"v":125000,"d":"125,000.00р."},{"$f":"SUM(+D22-C22)","v":{"v":125000,"d":"125,000.00р."}},{"$f":"SUM(E22/D22)","v":{"v":1,"d":"100.00%"}}]
[]
[10000,"Маркетинг",{"$f":"'Сводка ежемесячных расходов'!O24","v":0},{"v":100000,"d":"100,000.00р."},{"$f":"SUM(+D24-C24)","v":{"v":100000,"d":"100,000.00р."}},{"$f":"SUM(E24/D24)","v":{"v":1,"d":"100.00%"}}]
[]
[11000,"Благотворительность",{"$f":"'Сводка ежемесячных расходов'!O26","v":{"v":30000,"d":"30,000.00р."}},{"v":250000,"d":"250,000.00р."},{"$f":"SUM(+D26-C26)","v":{"v":220000,"d":"220,000.00р."}},{"$f":"SUM(E26/D26)","v":{"v":0.88,"d":"88.00%"}}]
[]
[12000,"Спонсорство",{"$f":"'Сводка ежемесячных расходов'!O28","v":{"v":12000,"d":"12,000.00р."}},{"v":50000,"d":"50,000.00р."},{"$f":"SUM(+D28-C28)","v":{"v":38000,"d":"38,000.00р."}},{"$f":"SUM(E28/D28)","v":{"v":0.76,"d":"76.00%"}}]
[]
[null,"ИТОГО",{"$f":"SUM(C6:C28)","v":{"v":972900,"d":"972,900.00р."}},{"$f":"SUM(D6:D28)","v":{"v":1140000,"d":"1,140,000.00р."}},{"$f":"SUM(E6:E28)","v":{"v":167100,"d":"167,100.00р."}},{"$f":"SUM(E30/D30)","v":{"v":0.14657894736842106,"d":"14.66%"}}]

{"sheet":"Сводка ежемесячных расходов","index":1,"n_rows":30,"n_cols":15,"rows_kept":30,"merged":[[1,0,1,14]]}
[]
["Ежемесячные расходы в 2005 г."]
[]
["Код главной книги","Название счета","2005-01-01","2005-02-01","2005-03-01","2005-04-01","2005-05-01","2005-06-01","2005-07-01","2005-08-01","2005-09-01","2005-10-01","2005-11-01","2005-12-01",2005]
[]
[1000,"Реклама",{"$f":"SUMIF('Благотворительность,Спонсорство'!$L:$L,\"=\"&($A6&TEXT(C$4,\"ммм-гг\")),'Благотворительность,Спонсорство'!$D:$D)+SUMIF('Расходы по категориям'!$J:$J,\"=\"&($A6&TEXT(C$4,\"ммм-гг\")),'Расходы по категориям'!$E:$E)","v":{"v":75075,"d":"75,075.00р."}},{"$f":"SUMIF('Благотворительность,Спонсорство'!$L:$L,\"=\"&($A6&TEXT(D$4,\"ммм-гг\")),'Благотворительность,Спонсорство'!$D:$D)+SUMIF('Расходы по категориям'!$J:$J,\"=\"&($A6&TEXT(D$4,\"ммм-гг\")),'Расходы по категориям'!$E:$E)","v":{"v":75075,"d":"75,075.00р."}},{"$f":"SUMIF('Благотворительность,Спонсорство'!$L:$L,\"=\"&($A6&TEXT(E$4,\"ммм-гг\")),'Благотворительность,Спонсорство'!$D:$D)+SUMIF('Расходы по категориям'!$J:$J,\"=\"&($A6&TEXT(E$4,\"ммм-гг\")),'Расходы по категориям'!$E:$E)","v":{"v":75075,"d":"75,075.00р."}},{"$f":"SUMIF('Благотворительность,Спонсорство'!$L:$L,\"=\"&($A6&TEXT(F$4,\"ммм-гг\")),'Благотворительность,Спонсорство'!$D:$D)+SUMIF('Расходы по категориям'!$J:$J,\"=\"&($A6&TEXT(F$4,\"ммм-гг\")),'Расходы по категориям'!$E:$E)","v":{"v":75075,"d":"75,075.00р."}},{"$f":"SUMIF('Благотворительность,Спонсорство'!$L:$L,\"=\"&($A6&TEXT(G$4,\"ммм-гг\")),'Благотворительность,Спонсорство'!$D:$D)+SUMIF('Расходы по категориям'!$J:$J,\"=\"&($A6&TEXT(G$4,\"ммм-гг\")),'Расходы по категориям'!$E:$E)","v":{"v":75075,"d":"75,075.00р."}},{"$f":"SUMIF('Благотворительность,Спонсорство'!$L:$L,\"=\"&($A6&TEXT(H$4,\"ммм-гг\")),'Благотворительность,Спонсорство'!$D:$D)+SUMIF('Расходы по категориям'!$J:$J,\"=\"&($A6&TEXT(H$4,\"ммм-гг\")),'Расходы по категориям'!$E:$E)","v":{"v":75075,"d":"75,075.00р."}},{"$f":"SUMIF('Благотворительность,Спонсорство'!$L:$L,\"=\"&($A6&TEXT(I$4,\"ммм-гг\")),'Благотворительность,Спонсорство'!$D:$D)+SUMIF('Расходы по категориям'!$J:$J,\"=\"&($A6&TEXT(I$4,\"ммм-гг\")),'Расходы по категориям'!$E:$E)","v":{"v":75075,"d":"75,075.00р."}},{"$f":"SUMIF('Благотворительность,Спонсорство'!$L:$L,\"=\"&($A6&TEXT(J$4,\"ммм-гг\")),'Благотворительность,Спонсорство'!$D:$D)+SUMIF('Расходы по категориям'!$J:$J,\"=\"&($A6&TEXT(J$4,\"ммм-гг\")),'Расходы по категориям'!$E:$E)","v":{"v":75075,"d":"75,075.00р."}},{"$f":"SUMIF('Благотворительность,Спонсорство'!$L:$L,\"=\"&($A6&TEXT(K$4,\"ммм-гг\")),'Благотворительность,Спонсорство'!$D:$D)+SUMIF('Расходы по категориям'!$J:$J,\"=\"&($A6&TEXT(K$4,\"ммм-гг\")),'Расходы по категориям'!$E:$E)","v":{"v":75075,"d":"75,075.00р."}},{"$f":"SUMIF('Благотворительность,Спонсорство'!$L:$L,\"=\"&($A6&TEXT(L$4,\"ммм-гг\")),'Благотворительность,Спонсорство'!$D:$D)+SUMIF('Расходы по категориям'!$J:$J,\"=\"&($A6&TEXT(L$4,\"ммм-гг\")),'Расходы по категориям'!$E:$E)","v":{"v":75075,"d":"75,075.00р."}},{"$f":"SUMIF('Благотворительность,Спонсорство'!$L:$L,\"=\"&($A6&TEXT(M$4,\"ммм-гг\")),'Благотворительность,Спонсорство'!$D:$D)+SUMIF('Расходы по категориям'!$J:$J,\"=\"&($A6&TEXT(M$4,\"ммм-гг\")),'Расходы по категориям'!$E:$E)","v":{"v":75075,"d":"75,075.00р."}},{"$f":"SUMIF('Благотворительность,Спонсорство'!$L:$L,\"=\"&($A6&TEXT(N$4,\"ммм-гг\")),'Благотворительность,Спонсорство'!$D:$D)+SUMIF('Расходы по категориям'!$J:$J,\"=\"&($A6&TEXT(N$4,\"ммм-гг\")),'Расходы по категориям'!$E:$E)","v":{"v":75075,"d":"75,075.00р."}},{"$f":"SUM(C6:N6)","v":{"v":900900,"d":"900,900.00р."}}]
[]
[2000,"Офисное оборудование",{"$f":"SUMIF('Благотворительность,Спонсорство'!$L:$L,\"=\"&($A8&TEXT(C$4,\"ммм-гг\")),'Благотворительность,Спонсорство'!$D:$D)+SUMIF('Расходы по категориям'!$J:$J,\"=\"&($A8&TEXT(C$4,\"ммм-гг\")),'Расходы по категориям'!$E:$E)","v":0},{"$f":"SUMIF('Благотворительность,Спонсорство'!$L:$L,\"=\"&($A8&TEXT(D$4,\"ммм-гг\")),'Благотворительность,Спонсорство'!$D:$D)+SUMIF('Расходы по категориям'!$J:$J,\"=\"&($A8&TEXT(D$4,\"ммм-гг\")),'Расходы по категориям'!$E:$E)","v":0},{"$f":"SUMIF('Благотворительность,Спонсорство'!$L:$L,\"=\"&($A8&TEXT(E$4,\"ммм-гг\")),'Благотворительность,Спонсорство'!$D:$D)+SUMIF('Расходы по категориям'!$J:$J,\"=\"&($A8&TEXT(E$4,\"ммм-гг\")),'Расходы по категориям'!$E:$E)","v":0},{"$f":"SUMIF('Благотворительность,Спонсорство'!$L:$L,\"=\"&($A8&TEXT(F$4,\"ммм-гг\")),'Благотворительность,Спонсорство'!$D:$D)+SUMIF('Расходы по категориям'!$J:$J,\"=\"&($A8&TEXT(F$4,\"ммм-гг\")),'Расходы по категориям'!$E:$E)","v":0},{"$f":"SUMIF('Благотворительность,Спонсорство'!$L:$L,\"=\"&($A8&TEXT(G$4,\"ммм-гг\")),'Благотворительность,Спонсорство'!$D:$D)+SUMIF('Расходы по категориям'!$J:$J,\"=\"&($A8&TEXT(G$4,\"ммм-гг\")),'Расходы по категориям'!$E:$E)","v":0},{"$f":"SUMIF('Благотворительность,Спонсорство'!$L:$L,\"=\"&($A8&TEXT(H$4,\"ммм-гг\")),'Благотворительность,Спонсорство'!$D:$D)+SUMIF('Расходы по категориям'!$J:$J,\"=\"&($A8&TEXT(H$4,\"ммм-гг\")),'Расходы по категориям'!$E:$E)","v":0},{"$f":"SUMIF('Благотворительность,Спонсорство'!$L:$L,\"=\"&($A8&TEXT(I$4,\"ммм-гг\")),'Благотворительность,Спонсорство'!$D:$D)+SUMIF('Расходы по категориям'!$J:$J,\"=\"&($A8&TEXT(I$4,\"ммм-гг\")),'Расходы по категориям'!$E:$E)","v":0},{"$f":"SUMIF('Благотворительность,Спонсорство'!$L:$L,\"=\"&($A8&TEXT(J$4,\"ммм-гг\")),'Благотворительность,Спонсорство'!$D:$D)+SUMIF('Расходы по категориям'!$J:$J,\"=\"&($A8&TEXT(J$4,\"ммм-гг\")),'Расходы по категориям'!$E:$E)","v":0},{"$f":"SUMIF('Благотворительность,Спонсорство'!$L:$L,\"=\"&($A8&TEXT(K$4,\"ммм-гг\")),'Благотворительность,Спонсорство'!$D:$D)+SUMIF('Расходы по категориям'!$J:$J,\"=\"&($A8&TEXT(K$4,\"ммм-гг\")),'Расходы по категориям'!$E:$E)","v":0},{"$f":"SUMIF('Благотворительность,Спонсорство'!$L:$L,\"=\"&($A8&TEXT(L$4,\"ммм-гг\")),'Благотворительность,Спонсорство'!$D:$D)+SUMIF('Расходы по категориям'!$J:$J,\"=\"&($A8&TEXT(L$4,\"ммм-гг\")),'Расходы по категориям'!$E:$E)","v":0},{"$f":"SUMIF('Благотворительность,Спонсорство'!$L:$L,\"=\"&($A8&TEXT(M$4,\"ммм-гг\")),'Благотворительность,Спонсорство'!$D:$D)+SUMIF('Расходы по категориям'!$J:$J,\"=\"&($A8&TEXT(M$4,\"ммм-гг\")),'Расходы по категориям'!$E:$E)","v":0},{"$f":"SUMIF('Благотворительность,Спонсорство'!$L:$L,\"=\"&($A8&TEXT(N$4,\"ммм-гг\")),'Благотворительность,Спонсорство'!$D:$D)+SUMIF('Расходы по категориям'!$J:$J,\"=\"&($A8&TEXT(N$4,\"ммм-гг\")),'Расходы по категориям'!$E:$E)","v":0},{"$f":"SUM(C8:N8)","v":0}]
[]
[3000,"Принтеры",{"$f":"SUMIF('Благотворительность,Спонсорство'!$L:$L,\"=\"&($A10&TEXT(C$4,\"ммм-гг\")),'Благотворительность,Спонсорство'!$D:$D)+SUMIF('Расходы по категориям'!$J:$J,\"=\"&($A10&TEXT(C$4,\"ммм-гг\")),'Расходы по категориям'!$E:$E)","v":0},{"$f":"SUMIF('Благотворительность,Спонсорство'!$L:$L,\"=\"&($A10&TEXT(D$4,\"ммм-гг\")),'Благотворительность,Спонсорство'!$D:$D)+SUMIF('Расходы по категориям'!$J:$J,\"=\"&($A10&TEXT(D$4,\"ммм-гг\")),'Расходы по категориям'!$E:$E)","v":0},{"$f":"SUMIF('Благотворительность,Спонсорство'!$L:$L,\"=\"&($A10&TEXT(E$4,\"ммм-гг\")),'Благотворительность,Спонсорство'!$D:$D)+SUMIF('Расходы по категориям'!$J:$J,\"=\"&($A10&TEXT(E$4,\"ммм-гг\")),'Расходы по категориям'!$E:$E)","v":0},{"$f":"SUMIF('Благотворительность,Спонсорство'!$L:$L,\"=\"&($A10&TEXT(F$4,\"ммм-гг\")),'Благотворительность,Спонсорство'!$D:$D)+SUMIF('Расходы по категориям'!$J:$J,\"=\"&($A10&TEXT(F$4,\"ммм-гг\")),'Расходы по категориям'!$E:$E)","v":0},{"$f":"SUMIF('Благотворительность,Спонсорство'!$L:$L,\"=\"&($A10&TEXT(G$4,\"ммм-гг\")),'Благотворительность,Спонсорство'!$D:$D)+SUMIF('Расходы по категориям'!$J:$J,\"=\"&($A10&TEXT(G$4,\"ммм-гг\")),'Расходы по категориям'!$E:$E)","v":0},{"$f":"SUMIF('Благотворительность,Спонсорство'!$L:$L,\"=\"&($A10&TEXT(H$4,\"ммм-гг\")),'Благотворительность,Спонсорство'!$D:$D)+SUMIF('Расходы по категориям'!$J:$J,\"=\"&($A10&TEXT(H$4,\"ммм-гг\")),'Расходы по категориям'!$E:$E)","v":0},{"$f":"SUMIF('Благотворительность,Спонсорство'!$L:$L,\"=\"&($A10&TEXT(I$4,\"ммм-гг\")),'Благотворительность,Спонсорство'!$D:$D)+SUMIF('Расходы по категориям'!$J:$J,\"=\"&($A10&TEXT(I$4,\"ммм-гг\")),'Расходы по категориям'!$E:$E)","v":0},{"$f":"SUMIF('Благотворительность,Спонсорство'!$L:$L,\"=\"&($A10&TEXT(J$4,\"ммм-гг\")),'Благотворительность,Спонсорство'!$D:$D)+SUMIF('Расходы по категориям'!$J:$J,\"=\"&($A10&TEXT(J$4,\"ммм-гг\")),'Расходы по категориям'!$E:$E)","v":0},{"$f":"SUMIF('Благотворительность,Спонсорство'!$L:$L,\"=\"&($A10&TEXT(K$4,\"ммм-гг\")),'Благотворительность,Спонсорство'!$D:$D)+SUMIF('Расходы по категориям'!$J:$J,\"=\"&($A10&TEXT(K$4,\"ммм-гг\")),'Расходы по категориям'!$E:$E)","v":0},{"$f":"SUMIF('Благотворительность,Спонсорство'!$L:$L,\"=\"&($A10&TEXT(L$4,\"ммм-гг\")),'Благотворительность,Спонсорство'!$D:$D)+SUMIF('Расходы по категориям'!$J:$J,\"=\"&($A10&TEXT(L$4,\"ммм-гг\")),'Расходы по категориям'!$E:$E)","v":0},{"$f":"SUMIF('Благотворительность,Спонсорство'!$L:$L,\"=\"&($A10&TEXT(M$4,\"ммм-гг\")),'Благотворительность,Спонсорство'!$D:$D)+SUMIF('Расходы по категориям'!$J:$J,\"=\"&($A10&TEXT(M$4,\"ммм-гг\")),'Расходы по категориям'!$E:$E)","v":0},{"$f":"SUMIF('Благотворительность,Спонсорство'!$L:$L,\"=\"&($A10&TEXT(N$4,\"ммм-гг\")),'Благотворительность,Спонсорство'!$D:$D)+SUMIF('Расходы по категориям'!$J:$J,\"=\"&($A10&TEXT(N$4,\"ммм-гг\")),'Расходы по категориям'!$E:$E)","v":0},{"$f":"SUM(C10:N10)","v":0}]
[]
[4000,"Затраты на серверы",{"$f":"SUMIF('Благотворительность,Спонсорство'!$L:$L,\"=\"&($A12&TEXT(C$4,\"ммм-гг\")),'Благотворительность,Спонсорство'!$D:$D)+SUMIF('Расходы по категориям'!$J:$J,\"=\"&($A12&TEXT(C$4,\"ммм-гг\")),'Расходы по категориям'!$E:$E)","v":0},{"$f":"SUMIF('Благотворительность,Спонсорство'!$L:$L,\"=\"&($A12&TEXT(D$4,\"ммм-гг\")),'Благотворительность,Спонсорство'!$D:$D)+SUMIF('Расходы по категориям'!$J:$J,\"=\"&($A12&TEXT(D$4,\"ммм-гг\")),'Расходы по категориям'!$E:$E)","v":0},{"$f":"SUMIF('Благотворительность,Спонсорство'!$L:$L,\"=\"&($A12&TEXT(E$4,\"ммм-гг\")),'Благотворительность,Спонсорство'!$D:$D)+SUMIF('Расходы по категориям'!$J:$J,\"=\"&($A12&TEXT(E$4,\"ммм-гг\")),'Расходы по категориям'!$E:$E)","v":0},0,{"$f":"SUMIF('Благотворительность,Спонсорство'!$L:$L,\"=\"&($A12&TEXT(G$4,\"ммм-гг\")),'Благотворительность,Спонсорство'!$D:$D)+SUMIF('Расходы по категориям'!$J:$J,\"=\"&($A12&TEXT(G$4,\"ммм-гг\")),'Расходы по категориям'!$E:$E)","v":0},{"$f":"SUMIF('Благотворительность,Спонсорство'!$L:$L,\"=\"&($A12&TEXT(H$4,\"ммм-гг\")),'Благотворительность,Спонсорство'!$D:$D)+SUMIF('Расходы по категориям'!$J:$J,\"=\"&($A12&TEXT(H$4,\"ммм-гг\")),'Расходы по категориям'!$E:$E)","v":0},{"$f":"SUMIF('Благотворительность,Спонсорство'!$L:$L,\"=\"&($A12&TEXT(I$4,\"ммм-гг\")),'Благотворительность,Спонсорство'!$D:$D)+SUMIF('Расходы по категориям'!$J:$J,\"=\"&($A12&TEXT(I$4,\"ммм-гг\")),'Расходы по категориям'!$E:$E)","v":0},{"$f":"SUMIF('Благотворительность,Спонсорство'!$L:$L,\"=\"&($A12&TEXT(J$4,\"ммм-гг\")),'Благотворительность,Спонсорство'!$D:$D)+SUMIF('Расходы по категориям'!$J:$J,\"=\"&($A12&TEXT(J$4,\"ммм-гг\")),'Расходы по категориям'!$E:$E)","v":0},{"$f":"SUMIF('Благотворительность,Спонсорство'!$L:$L,\"=\"&($A12&TEXT(K$4,\"ммм-гг\")),'Благотворительность,Спонсорство'!$D:$D)+SUMIF('Расходы по категориям'!$J:$J,\"=\"&($A12&TEXT(K$4,\"ммм-гг\")),'Расходы по категориям'!$E:$E)","v":0},{"$f":"SUMIF('Благотворительность,Спонсорство'!$L:$L,\"=\"&($A12&TEXT(L$4,\"ммм-гг\")),'Благотворительность,Спонсорство'!$D:$D)+SUMIF('Расходы по категориям'!$J:$J,\"=\"&($A12&TEXT(L$4,\"ммм-гг\")),'Расходы по категориям'!$E:$E)","v":0},{"$f":"SUMIF('Благотворительность,Спонсорство'!$L:$L,\"=\"&($A12&TEXT(M$4,\"ммм-гг\")),'Благотворительность,Спонсорство'!$D:$D)+SUMIF('Расходы по категориям'!$J:$J,\"=\"&($A12&TEXT(M$4,\"ммм-гг\")),'Расходы по категориям'!$E:$E)","v":0},{"$f":"SUMIF('Благотворительность,Спонсорство'!$L:$L,\"=\"&($A12&TEXT(N$4,\"ммм-гг\")),'Благотворительность,Спонсорство'!$D:$D)+SUMIF('Расходы по категориям'!$J:$J,\"=\"&($A12&TEXT(N$4,\"ммм-гг\")),'Расходы по категориям'!$E:$E)","v":0},{"$f":"SUM(C12:N12)","v":0}]
[]
[5000,"Принадлежности",{"$f":"SUMIF('Благотворительность,Спонсорство'!$L:$L,\"=\"&($A14&TEXT(C$4,\"ммм-гг\")),'Благотворительность,Спонсорство'!$D:$D)+SUMIF('Расходы по категориям'!$J:$J,\"=\"&($A14&TEXT(C$4,\"ммм-гг\")),'Расходы по категориям'!$E:$E)","v":0},{"$f":"SUMIF('Благотворительность,Спонсорство'!$L:$L,\"=\"&($A14&TEXT(D$4,\"ммм-гг\")),'Благотворительность,Спонсорство'!$D:$D)+SUMIF('Расходы по категориям'!$J:$J,\"=\"&($A14&TEXT(D$4,\"ммм-гг\")),'Расходы по категориям'!$E:$E)","v":0},{"$f":"SUMIF('Благотворительность,Спонсорство'!$L:$L,\"=\"&($A14&TEXT(E$4,\"ммм-гг\")),'Благотворительность,Спонсорство'!$D:$D)+SUMIF('Расходы по категориям'!$J:$J,\"=\"&($A14&TEXT(E$4,\"ммм-гг\")),'Расходы по категориям'!$E:$E)","v":0},{"$f":"SUMIF('Благотворительность,Спонсорство'!$L:$L,\"=\"&($A14&TEXT(F$4,\"ммм-гг\")),'Благотворительность,Спонсорство'!$D:$D)+SUMIF('Расходы по категориям'!$J:$J,\"=\"&($A14&TEXT(F$4,\"ммм-гг\")),'Расходы по категориям'!$E:$E)","v":0},{"$f":"SUMIF('Благотворительность,Спонсорство'!$L:$L,\"=\"&($A14&TEXT(G$4,\"ммм-гг\")),'Благотворительность,Спонсорство'!$D:$D)+SUMIF('Расходы по категориям'!$J:$J,\"=\"&($A14&TEXT(G$4,\"ммм-гг\")),'Расходы по категориям'!$E:$E)","v":0},{"$f":"SUMIF('Благотворительность,Спонсорство'!$L:$L,\"=\"&($A14&TEXT(H$4,\"ммм-гг\")),'Благотворительность,Спонсорство'!$D:$D)+SUMIF('Расходы по категориям'!$J:$J,\"=\"&($A14&TEXT(H$4,\"ммм-гг\")),'Расходы по категориям'!$E:$E)","v":0},{"$f":"SUMIF('Благотворительность,Спонсорство'!$L:$L,\"=\"&($A14&TEXT(I$4,\"ммм-гг\")),'Благотворительность,Спонсорство'!$D:$D)+SUMIF('Расходы по категориям'!$J:$J,\"=\"&($A14&TEXT(I$4,\"ммм-гг\")),'Расходы по категориям'!$E:$E)","v":0},{"$f":"SUMIF('Благотворительность,Спонсорство'!$L:$L,\"=\"&($A14&TEXT(J$4,\"ммм-гг\")),'Благотворительность,Спонсорство'!$D:$D)+SUMIF('Расходы по категориям'!$J:$J,\"=\"&($A14&TEXT(J$4,\"ммм-гг\")),'Расходы по категориям'!$E:$E)","v":0},{"$f":"SUMIF('Благотворительность,Спонсорство'!$L:$L,\"=\"&($A14&TEXT(K$4,\"ммм-гг\")),'Благотворительность,Спонсорство'!$D:$D)+SUMIF('Расходы по категориям'!$J:$J,\"=\"&($A14&TEXT(K$4,\"ммм-гг\")),'Расходы по категориям'!$E:$E)","v":0},{"$f":"SUMIF('Благотворительность,Спонсорство'!$L:$L,\"=\"&($A14&TEXT(L$4,\"ммм-гг\")),'Благотворительность,Спонсорство'!$D:$D)+SUMIF('Расходы по категориям'!$J:$J,\"=\"&($A14&TEXT(L$4,\"ммм-гг\")),'Расходы по категориям'!$E:$E)","v":0},{"$f":"SUMIF('Благотворительность,Спонсорство'!$L:$L,\"=\"&($A14&TEXT(M$4,\"ммм-гг\")),'Благотворительность,Спонсорство'!$D:$D)+SUMIF('Расходы по категориям'!$J:$J,\"=\"&($A14&TEXT(M$4,\"ммм-гг\")),'Расходы по категориям'!$E:$E)","v":0},{"$f":"SUMIF('Благотворительность,Спонсорство'!$L:$L,\"=\"&($A14&TEXT(N$4,\"ммм-гг\")),'Благотворительность,Спонсорство'!$D:$D)+SUMIF('Расходы по категориям'!$J:$J,\"=\"&($A14&TEXT(N$4,\"ммм-гг\")),'Расходы по категориям'!$E:$E)","v":0},{"$f":"SUM(C14:N14)","v":0}]
[]
[6000,"Затраты на клиентов",{"$f":"SUMIF('Благотворительность,Спонсорство'!$L:$L,\"=\"&($A16&TEXT(C$4,\"ммм-гг\")),'Благотворительность,Спонсорство'!$D:$D)+SUMIF('Расходы по категориям'!$J:$J,\"=\"&($A16&TEXT(C$4,\"ммм-гг\")),'Расходы по категориям'!$E:$E)","v":0},{"$f":"SUMIF('Благотворительность,Спонсорство'!$L:$L,\"=\"&($A16&TEXT(D$4,\"ммм-гг\")),'Благотворительность,Спонсорство'!$D:$D)+SUMIF('Расходы по категориям'!$J:$J,\"=\"&($A16&TEXT(D$4,\"ммм-гг\")),'Расходы по категориям'!$E:$E)","v":0},{"$f":"SUMIF('Благотворительность,Спонсорство'!$L:$L,\"=\"&($A16&TEXT(E$4,\"ммм-гг\")),'Благотворительность,Спонсорство'!$D:$D)+SUMIF('Расходы по категориям'!$J:$J,\"=\"&($A16&TEXT(E$4,\"ммм-гг\")),'Расходы по категориям'!$E:$E)","v":0},{"$f":"SUMIF('Благотворительность,Спонсорство'!$L:$L,\"=\"&($A16&TEXT(F$4,\"ммм-гг\")),'Благотворительность,Спонсорство'!$D:$D)+SUMIF('Расходы по категориям'!$J:$J,\"=\"&($A16&TEXT(F$4,\"ммм-гг\")),'Расходы по категориям'!$E:$E)","v":0},{"$f":"SUMIF('Благотворительность,Спонсорство'!$L:$L,\"=\"&($A16&TEXT(G$4,\"ммм-гг\")),'Благотворительность,Спонсорство'!$D:$D)+SUMIF('Расходы по категориям'!$J:$J,\"=\"&($A16&TEXT(G$4,\"ммм-гг\")),'Расходы по категориям'!$E:$E)","v":0},{"$f":"SUMIF('Благотворительность,Спонсорство'!$L:$L,\"=\"&($A16&TEXT(H$4,\"ммм-гг\")),'Благотворительность,Спонсорство'!$D:$D)+SUMIF('Расходы по категориям'!$J:$J,\"=\"&($A16&TEXT(H$4,\"ммм-гг\")),'Расходы по категориям'!$E:$E)","v":0},{"$f":"SUMIF('Благотворительность,Спонсорство'!$L:$L,\"=\"&($A16&TEXT(I$4,\"ммм-гг\")),'Благотворительность,Спонсорство'!$D:$D)+SUMIF('Расходы по категориям'!$J:$J,\"=\"&($A16&TEXT(I$4,\"ммм-гг\")),'Расходы по категориям'!$E:$E)","v":0},{"$f":"SUMIF('Благотворительность,Спонсорство'!$L:$L,\"=\"&($A16&TEXT(J$4,\"ммм-гг\")),'Благотворительность,Спонсорство'!$D:$D)+SUMIF('Расходы по категориям'!$J:$J,\"=\"&($A16&TEXT(J$4,\"ммм-гг\")),'Расходы по категориям'!$E:$E)","v":0},{"$f":"SUMIF('Благотворительность,Спонсорство'!$L:$L,\"=\"&($A16&TEXT(K$4,\"ммм-гг\")),'Благотворительность,Спонсорство'!$D:$D)+SUMIF('Расходы по категориям'!$J:$J,\"=\"&($A16&TEXT(K$4,\"ммм-гг\")),'Расходы по категориям'!$E:$E)","v":0},{"$f":"SUMIF('Благотворительность,Спонсорство'!$L:$L,\"=\"&($A16&TEXT(L$4,\"ммм-гг\")),'Благотворительность,Спонсорство'!$D:$D)+SUMIF('Расходы по категориям'!$J:$J,\"=\"&($A16&TEXT(L$4,\"ммм-гг\")),'Расходы по категориям'!$E:$E)","v":0},{"$f":"SUMIF('Благотворительность,Спонсорство'!$L:$L,\"=\"&($A16&TEXT(M$4,\"ммм-гг\")),'Благотворительность,Спонсорство'!$D:$D)+SUMIF('Расходы по категориям'!$J:$J,\"=\"&($A16&TEXT(M$4,\"ммм-гг\")),'Расходы по категориям'!$E:$E)","v":0},{"$f":"SUMIF('Благотворительность,Спонсорство'!$L:$L,\"=\"&($A16&TEXT(N$4,\"ммм-гг\")),'Благотворительность,Спонсорство'!$D:$D)+SUMIF('Расходы по категориям'!$J:$J,\"=\"&($A16&TEXT(N$4,\"ммм-гг\")),'Расходы по категориям'!$E:$E)","v":0},{"$f":"SUM(C16:N16)","v":0}]
[]
[7000,"Компьютеры",{"$f":"SUMIF('Благотворительность,Спонсорство'!$L:$L,\"=\"&($A18&TEXT(C$4,\"ммм-гг\")),'Благотворительность,Спонсорство'!$D:$D)+SUMIF('Расходы по категориям'!$J:$J,\"=\"&($A18&TEXT(C$4,\"ммм-гг\")),'Расходы по категориям'!$E:$E)","v":{"v":2500,"d":"2,500.00р."}},{"$f":"SUMIF('Благотворительность,Спонсорство'!$L:$L,\"=\"&($A18&TEXT(D$4,\"ммм-гг\")),'Благотворительность,Спонсорство'!$D:$D)+SUMIF('Расходы по категориям'!$J:$J,\"=\"&($A18&TEXT(D$4,\"ммм-гг\")),'Расходы по категориям'!$E:$E)","v":{"v":2500,"d":"2,500.00р."}},{"$f":"SUMIF('Благотворительность,Спонсорство'!$L:$L,\"=\"&($A18&TEXT(E$4,\"ммм-гг\")),'Благотворительность,Спонсорство'!$D:$D)+SUMIF('Расходы по категориям'!$J:$J,\"=\"&($A18&TEXT(E$4,\"ммм-гг\")),'Расходы по категориям'!$E:$E)","v":{"v":2500,"d":"2,500.00р."}},{"$f":"SUMIF('Благотворительность,Спонсорство'!$L:$L,\"=\"&($A18&TEXT(F$4,\"ммм-гг\")),'Благотворительность,Спонсорство'!$D:$D)+SUMIF('Расходы по категориям'!$J:$J,\"=\"&($A18&TEXT(F$4,\"ммм-гг\")),'Расходы по категориям'!$E:$E)","v":{"v":2500,"d":"2,500.00р."}},{"$f":"SUMIF('Благотворительность,Спонсорство'!$L:$L,\"=\"&($A18&TEXT(G$4,\"ммм-гг\")),'Благотворительность,Спонсорство'!$D:$D)+SUMIF('Расходы по категориям'!$J:$J,\"=\"&($A18&TEXT(G$4,\"ммм-гг\")),'Расходы по категориям'!$E:$E)","v":{"v":2500,"d":"2,500.00р."}},{"$f":"SUMIF('Благотворительность,Спонсорство'!$L:$L,\"=\"&($A18&TEXT(H$4,\"ммм-гг\")),'Благотворительность,Спонсорство'!$D:$D)+SUMIF('Расходы по категориям'!$J:$J,\"=\"&($A18&TEXT(H$4,\"ммм-гг\")),'Расходы по категориям'!$E:$E)","v":{"v":2500,"d":"2,500.00р."}},{"$f":"SUMIF('Благотворительность,Спонсорство'!$L:$L,\"=\"&($A18&TEXT(I$4,\"ммм-гг\")),'Благотворительность,Спонсорство'!$D:$D)+SUMIF('Расходы по категориям'!$J:$J,\"=\"&($A18&TEXT(I$4,\"ммм-гг\")),'Расходы по категориям'!$E:$E)","v":{"v":2500,"d":"2,500.00р."}},{"$f":"SUMIF('Благотворительность,Спонсорство'!$L:$L,\"=\"&($A18&TEXT(J$4,\"ммм-гг\")),'Благотворительность,Спонсорство'!$D:$D)+SUMIF('Расходы по категориям'!$J:$J,\"=\"&($A18&TEXT(J$4,\"ммм-гг\")),'Расходы по категориям'!$E:$E)","v":{"v":2500,"d":"2,500.00р."}},{"$f":"SUMIF('Благотворительность,Спонсорство'!$L:$L,\"=\"&($A18&TEXT(K$4,\"ммм-гг\")),'Благотворительность,Спонсорство'!$D:$D)+SUMIF('Расходы по категориям'!$J:$J,\"=\"&($A18&TEXT(K$4,\"ммм-гг\")),'Расходы по категориям'!$E:$E)","v":{"v":2500,"d":"2,500.00р."}},{"$f":"SUMIF('Благотворительность,Спонсорство'!$L:$L,\"=\"&($A18&TEXT(L$4,\"ммм-гг\")),'Благотворительность,Спонсорство'!$D:$D)+SUMIF('Расходы по категориям'!$J:$J,\"=\"&($A18&TEXT(L$4,\"ммм-гг\")),'Расходы по категориям'!$E:$E)","v":{"v":2500,"d":"2,500.00р."}},{"$f":"SUMIF('Благотворительность,Спонсорство'!$L:$L,\"=\"&($A18&TEXT(M$4,\"ммм-гг\")),'Благотворительность,Спонсорство'!$D:$D)+SUMIF('Расходы по категориям'!$J:$J,\"=\"&($A18&TEXT(M$4,\"ммм-гг\")),'Расходы по категориям'!$E:$E)","v":{"v":2500,"d":"2,500.00р."}},{"$f":"SUMIF('Благотворительность,Спонсорство'!$L:$L,\"=\"&($A18&TEXT(N$4,\"ммм-гг\")),'Благотворительность,Спонсорство'!$D:$D)+SUMIF('Расходы по категориям'!$J:$J,\"=\"&($A18&TEXT(N$4,\"ммм-гг\")),'Расходы по категориям'!$E:$E)","v":{"v":2500,"d":"2,500.00р."}},{"$f":"SUM(C18:N18)","v":{"v":30000,"d":"30,000.00р."}}]
[]
[8000,"План медицинского обслуживания",{"$f":"SUMIF('Благотворительность,Спонсорство'!$L:$L,\"=\"&($A20&TEXT(C$4,\"ммм-гг\")),'Благотворительность,Спонсорство'!$D:$D)+SUMIF('Расходы по категориям'!$J:$J,\"=\"&($A20&TEXT(C$4,\"ммм-гг\")),'Расходы по категориям'!$E:$E)","v":0},{"$f":"SUMIF('Благотворительность,Спонсорство'!$L:$L,\"=\"&($A20&TEXT(D$4,\"ммм-гг\")),'Благотворительность,Спонсорство'!$D:$D)+SUMIF('Расходы по категориям'!$J:$J,\"=\"&($A20&TEXT(D$4,\"ммм-гг\")),'Расходы по категориям'!$E:$E)","v":0},{"$f":"SUMIF('Благотворительность,Спонсорство'!$L:$L,\"=\"&($A20&TEXT(E$4,\"ммм-гг\")),'Благотворительность,Спонсорство'!$D:$D)+SUMIF('Расходы по категориям'!$J:$J,\"=\"&($A20&TEXT(E$4,\"ммм-гг\")),'Расходы по категориям'!$E:$E)","v":0},{"$f":"SUMIF('Благотворительность,Спонсорство'!$L:$L,\"=\"&($A20&TEXT(F$4,\"ммм-гг\")),'Благотворительность,Спонсорство'!$D:$D)+SUMIF('Расходы по категориям'!$J:$J,\"=\"&($A20&TEXT(F$4,\"ммм-гг\")),'Расходы по категориям'!$E:$E)","v":0},{"$f":"SUMIF('Благотворительность,Спонсорство'!$L:$L,\"=\"&($A20&TEXT(G$4,\"ммм-гг\")),'Благотворительность,Спонсорство'!$D:$D)+SUMIF('Расходы по категориям'!$J:$J,\"=\"&($A20&TEXT(G$4,\"ммм-гг\")),'Расходы по категориям'!$E:$E)","v":0},0,{"$f":"SUMIF('Благотворительность,Спонсорство'!$L:$L,\"=\"&($A20&TEXT(I$4,\"ммм-гг\")),'Благотворительность,Спонсорство'!$D:$D)+SUMIF('Расходы по категориям'!$J:$J,\"=\"&($A20&TEXT(I$4,\"ммм-гг\")),'Расходы по категориям'!$E:$E)","v":0},{"$f":"SUMIF('Благотворительность,Спонсорство'!$L:$L,\"=\"&($A20&TEXT(J$4,\"ммм-гг\")),'Благотворительность,Спонсорство'!$D:$D)+SUMIF('Расходы по категориям'!$J:$J,\"=\"&($A20&TEXT(J$4,\"ммм-гг\")),'Расходы по категориям'!$E:$E)","v":0},{"$f":"SUMIF('Благотворительность,Спонсорство'!$L:$L,\"=\"&($A20&TEXT(K$4,\"ммм-гг\")),'Благотворительность,Спонсорство'!$D:$D)+SUMIF('Расходы по категориям'!$J:$J,\"=\"&($A20&TEXT(K$4,\"ммм-гг\")),'Расходы по категориям'!$E:$E)","v":0},{"$f":"SUMIF('Благотворительность,Спонсорство'!$L:$L,\"=\"&($A20&TEXT(L$4,\"ммм-гг\")),'Благотворительность,Спонсорство'!$D:$D)+SUMIF('Расходы по категориям'!$J:$J,\"=\"&($A20&TEXT(L$4,\"ммм-гг\")),'Расходы по категориям'!$E:$E)","v":0},{"$f":"SUMIF('Благотворительность,Спонсорство'!$L:$L,\"=\"&($A20&TEXT(M$4,\"ммм-гг\")),'Благотворительность,Спонсорство'!$D:$D)+SUMIF('Расходы по категориям'!$J:$J,\"=\"&($A20&TEXT(M$4,\"ммм-гг\")),'Расходы по категориям'!$E:$E)","v":0},{"$f":"SUMIF('Благотворительность,Спонсорство'!$L:$L,\"=\"&($A20&TEXT(N$4,\"ммм-гг\")),'Благотворительность,Спонсорство'!$D:$D)+SUMIF('Расходы по категориям'!$J:$J,\"=\"&($A20&TEXT(N$4,\"ммм-гг\")),'Расходы по категориям'!$E:$E)","v":0},{"$f":"SUM(C20:N20)","v":0}]
[]
[9000,"Затраты на строительство",{"$f":"SUMIF('Благотворительность,Спонсорство'!$L:$L,\"=\"&($A22&TEXT(C$4,\"ммм-гг\")),'Благотворительность,Спонсорство'!$D:$D)+SUMIF('Расходы по категориям'!$J:$J,\"=\"&($A22&TEXT(C$4,\"ммм-гг\")),'Расходы по категориям'!$E:$E)","v":0},{"$f":"SUMIF('Благотворительность,Спонсорство'!$L:$L,\"=\"&($A22&TEXT(D$4,\"ммм-гг\")),'Благотворительность,Спонсорство'!$D:$D)+SUMIF('Расходы по категориям'!$J:$J,\"=\"&($A22&TEXT(D$4,\"ммм-гг\")),'Расходы по категориям'!$E:$E)","v":0},{"$f":"SUMIF('Благотворительность,Спонсорство'!$L:$L,\"=\"&($A22&TEXT(E$4,\"ммм-гг\")),'Благотворительность,Спонсорство'!$D:$D)+SUMIF('Расходы по категориям'!$J:$J,\"=\"&($A22&TEXT(E$4,\"ммм-гг\")),'Расходы по категориям'!$E:$E)","v":0},{"$f":"SUMIF('Благотворительность,Спонсорство'!$L:$L,\"=\"&($A22&TEXT(F$4,\"ммм-гг\")),'Благотворительность,Спонсорство'!$D:$D)+SUMIF('Расходы по категориям'!$J:$J,\"=\"&($A22&TEXT(F$4,\"ммм-гг\")),'Расходы по категориям'!$E:$E)","v":0},{"$f":"SUMIF('Благотворительность,Спонсорство'!$L:$L,\"=\"&($A22&TEXT(G$4,\"ммм-гг\")),'Благотворительность,Спонсорство'!$D:$D)+SUMIF('Расходы по категориям'!$J:$J,\"=\"&($A22&TEXT(G$4,\"ммм-гг\")),'Расходы по категориям'!$E:$E)","v":0},{"$f":"SUMIF('Благотворительность,Спонсорство'!$L:$L,\"=\"&($A22&TEXT(H$4,\"ммм-гг\")),'Благотворительность,Спонсорство'!$D:$D)+SUMIF('Расходы по категориям'!$J:$J,\"=\"&($A22&TEXT(H$4,\"ммм-гг\")),'Расходы по категориям'!$E:$E)","v":0},{"$f":"SUMIF('Благотворительность,Спонсорство'!$L:$L,\"=\"&($A22&TEXT(I$4,\"ммм-гг\")),'Благотворительность,Спонсорство'!$D:$D)+SUMIF('Расходы по категориям'!$J:$J,\"=\"&($A22&TEXT(I$4,\"ммм-гг\")),'Расходы по категориям'!$E:$E)","v":0},{"$f":"SUMIF('Благотворительность,Спонсорство'!$L:$L,\"=\"&($A22&TEXT(J$4,\"ммм-гг\")),'Благотворительность,Спонсорство'!$D:$D)+SUMIF('Расходы по категориям'!$J:$J,\"=\"&($A22&TEXT(J$4,\"ммм-гг\")),'Расходы по категориям'!$E:$E)","v":0},{"$f":"SUMIF('Благотворительность,Спонсорство'!$L:$L,\"=\"&($A22&TEXT(K$4,\"ммм-гг\")),'Благотворительность,Спонсорство'!$D:$D)+SUMIF('Расходы по категориям'!$J:$J,\"=\"&($A22&TEXT(K$4,\"ммм-гг\")),'Расходы по категориям'!$E:$E)","v":0},{"$f":"SUMIF('Благотворительность,Спонсорство'!$L:$L,\"=\"&($A22&TEXT(L$4,\"ммм-гг\")),'Благотворительность,Спонсорство'!$D:$D)+SUMIF('Расходы по категориям'!$J:$J,\"=\"&($A22&TEXT(L$4,\"ммм-гг\")),'Расходы по категориям'!$E:$E)","v":0},{"$f":"SUMIF('Благотворительность,Спонсорство'!$L:$L,\"=\"&($A22&TEXT(M$4,\"ммм-гг\")),'Благотворительность,Спонсорство'!$D:$D)+SUMIF('Расходы по категориям'!$J:$J,\"=\"&($A22&TEXT(M$4,\"ммм-гг\")),'Расходы по категориям'!$E:$E)","v":0},{"$f":"SUMIF('Благотворительность,Спонсорство'!$L:$L,\"=\"&($A22&TEXT(N$4,\"ммм-гг\")),'Благотворительность,Спонсорство'!$D:$D)+SUMIF('Расходы по категориям'!$J:$J,\"=\"&($A22&TEXT(N$4,\"ммм-гг\")),'Расходы по категориям'!$E:$E)","v":0},{"$f":"SUM(C22:N22)","v":0}]
[]
[10000,"Маркетинг",{"$f":"SUMIF('Благотворительность,Спонсорство'!$L:$L,\"=\"&($A24&TEXT(C$4,\"ммм-гг\")),'Благотворительность,Спонсорство'!$D:$D)+SUMIF('Расходы по категориям'!$J:$J,\"=\"&($A24&TEXT(C$4,\"ммм-гг\")),'Расходы по категориям'!$E:$E)","v":0},{"$f":"SUMIF('Благотворительность,Спонсорство'!$L:$L,\"=\"&($A24&TEXT(D$4,\"ммм-гг\")),'Благотворительность,Спонсорство'!$D:$D)+SUMIF('Расходы по категориям'!$J:$J,\"=\"&($A24&TEXT(D$4,\"ммм-гг\")),'Расходы по категориям'!$E:$E)","v":0},{"$f":"SUMIF('Благотворительность,Спонсорство'!$L:$L,\"=\"&($A24&TEXT(E$4,\"ммм-гг\")),'Благотворительность,Спонсорство'!$D:$D)+SUMIF('Расходы по категориям'!$J:$J,\"=\"&($A24&TEXT(E$4,\"ммм-гг\")),'Расходы по категориям'!$E:$E)","v":0},{"$f":"SUMIF('Благотворительность,Спонсорство'!$L:$L,\"=\"&($A24&TEXT(F$4,\"ммм-гг\")),'Благотворительность,Спонсорство'!$D:$D)+SUMIF('Расходы по категориям'!$J:$J,\"=\"&($A24&TEXT(F$4,\"ммм-гг\")),'Расходы по категориям'!$E:$E)","v":0},{"$f":"SUMIF('Благотворительность,Спонсорство'!$L:$L,\"=\"&($A24&TEXT(G$4,\"ммм-гг\")),'Благотворительность,Спонсорство'!$D:$D)+SUMIF('Расходы по категориям'!$J:$J,\"=\"&($A24&TEXT(G$4,\"ммм-гг\")),'Расходы по категориям'!$E:$E)","v":0},{"$f":"SUMIF('Благотворительность,Спонсорство'!$L:$L,\"=\"&($A24&TEXT(H$4,\"ммм-гг\")),'Благотворительность,Спонсорство'!$D:$D)+SUMIF('Расходы по категориям'!$J:$J,\"=\"&($A24&TEXT(H$4,\"ммм-гг\")),'Расходы по категориям'!$E:$E)","v":0},{"$f":"SUMIF('Благотворительность,Спонсорство'!$L:$L,\"=\"&($A24&TEXT(I$4,\"ммм-гг\")),'Благотворительность,Спонсорство'!$D:$D)+SUMIF('Расходы по категориям'!$J:$J,\"=\"&($A24&TEXT(I$4,\"ммм-гг\")),'Расходы по категориям'!$E:$E)","v":0},{"$f":"SUMIF('Благотворительность,Спонсорство'!$L:$L,\"=\"&($A24&TEXT(J$4,\"ммм-гг\")),'Благотворительность,Спонсорство'!$D:$D)+SUMIF('Расходы по категориям'!$J:$J,\"=\"&($A24&TEXT(J$4,\"ммм-гг\")),'Расходы по категориям'!$E:$E)","v":0},{"$f":"SUMIF('Благотворительность,Спонсорство'!$L:$L,\"=\"&($A24&TEXT(K$4,\"ммм-гг\")),'Благотворительность,Спонсорство'!$D:$D)+SUMIF('Расходы по категориям'!$J:$J,\"=\"&($A24&TEXT(K$4,\"ммм-гг\")),'Расходы по категориям'!$E:$E)","v":0},{"$f":"SUMIF('Благотворительность,Спонсорство'!$L:$L,\"=\"&($A24&TEXT(L$4,\"ммм-гг\")),'Благотворительность,Спонсорство'!$D:$D)+SUMIF('Расходы по категориям'!$J:$J,\"=\"&($A24&TEXT(L$4,\"ммм-гг\")),'Расходы по категориям'!$E:$E)","v":0},{"$f":"SUMIF('Благотворительность,Спонсорство'!$L:$L,\"=\"&($A24&TEXT(M$4,\"ммм-гг\")),'Благотворительность,Спонсорство'!$D:$D)+SUMIF('Расходы по категориям'!$J:$J,\"=\"&($A24&TEXT(M$4,\"ммм-гг\")),'Расходы по категориям'!$E:$E)","v":0},{"$f":"SUMIF('Благотворительность,Спонсорство'!$L:$L,\"=\"&($A24&TEXT(N$4,\"ммм-гг\")),'Благотворительность,Спонсорство'!$D:$D)+SUMIF('Расходы по категориям'!$J:$J,\"=\"&($A24&TEXT(N$4,\"ммм-гг\")),'Расходы по категориям'!$E:$E)","v":0},{"$f":"SUM(C24:N24)","v":0}]
[]
[11000,"Благотворительность",{"$f":"SUMIF('Благотворительность,Спонсорство'!$L:$L,\"=\"&($A26&TEXT(C$4,\"ммм-гг\")),'Благотворительность,Спонсорство'!$D:$D)+SUMIF('Расходы по категориям'!$J:$J,\"=\"&($A26&TEXT(C$4,\"ммм-гг\")),'Расходы по категориям'!$E:$E)","v":{"v":2500,"d":"2,500.00р."}},{"$f":"SUMIF('Благотворительность,Спонсорство'!$L:$L,\"=\"&($A26&TEXT(D$4,\"ммм-гг\")),'Благотворительность,Спонсорство'!$D:$D)+SUMIF('Расходы по категориям'!$J:$J,\"=\"&($A26&TEXT(D$4,\"ммм-гг\")),'Расходы по категориям'!$E:$E)","v":{"v":2500,"d":"2,500.00р."}},{"$f":"SUMIF('Благотворительность,Спонсорство'!$L:$L,\"=\"&($A26&TEXT(E$4,\"ммм-гг\")),'Благотворительность,Спонсорство'!$D:$D)+SUMIF('Расходы по категориям'!$J:$J,\"=\"&($A26&TEXT(E$4,\"ммм-гг\")),'Расходы по категориям'!$E:$E)","v":{"v":2500,"d":"2,500.00р."}},{"$f":"SUMIF('Благотворительность,Спонсорство'!$L:$L,\"=\"&($A26&TEXT(F$4,\"ммм-гг\")),'Благотворительность,Спонсорство'!$D:$D)+SUMIF('Расходы по категориям'!$J:$J,\"=\"&($A26&TEXT(F$4,\"ммм-гг\")),'Расходы по категориям'!$E:$E)","v":{"v":2500,"d":"2,500.00р."}},{"$f":"SUMIF('Благотворительность,Спонсорство'!$L:$L,\"=\"&($A26&TEXT(G$4,\"ммм-гг\")),'Благотворительность,Спонсорство'!$D:$D)+SUMIF('Расходы по категориям'!$J:$J,\"=\"&($A26&TEXT(G$4,\"ммм-гг\")),'Расходы по категориям'!$E:$E)","v":{"v":2500,"d":"2,500.00р."}},{"$f":"SUMIF('Благотворительность,Спонсорство'!$L:$L,\"=\"&($A26&TEXT(H$4,\"ммм-гг\")),'Благотворительность,Спонсорство'!$D:$D)+SUMIF('Расходы по категориям'!$J:$J,\"=\"&($A26&TEXT(H$4,\"ммм-гг\")),'Расходы по категориям'!$E:$E)","v":{"v":2500,"d":"2,500.00р."}},{"$f":"SUMIF('Благотворительность,Спонсорство'!$L:$L,\"=\"&($A26&TEXT(I$4,\"ммм-гг\")),'Благотворительность,Спонсорство'!$D:$D)+SUMIF('Расходы по категориям'!$J:$J,\"=\"&($A26&TEXT(I$4,\"ммм-гг\")),'Расходы по категориям'!$E:$E)","v":{"v":2500,"d":"2,500.00р."}},{"$f":"SUMIF('Благотворительность,Спонсорство'!$L:$L,\"=\"&($A26&TEXT(J$4,\"ммм-гг\")),'Благотворительность,Спонсорство'!$D:$D)+SUMIF('Расходы по категориям'!$J:$J,\"=\"&($A26&TEXT(J$4,\"ммм-гг\")),'Расходы по категориям'!$E:$E)","v":{"v":2500,"d":"2,500.00р."}},{"$f":"SUMIF('Благотворительность,Спонсорство'!$L:$L,\"=\"&($A26&TEXT(K$4,\"ммм-гг\")),'Благотворительность,Спонсорство'!$D:$D)+SUMIF('Расходы по категориям'!$J:$J,\"=\"&($A26&TEXT(K$4,\"ммм-гг\")),'Расходы по категориям'!$E:$E)","v":{"v":2500,"d":"2,500.00р."}},{"$f":"SUMIF('Благотворительность,Спонсорство'!$L:$L,\"=\"&($A26&TEXT(L$4,\"ммм-гг\")),'Благотворительность,Спонсорство'!$D:$D)+SUMIF('Расходы по категориям'!$J:$J,\"=\"&($A26&TEXT(L$4,\"ммм-гг\")),'Расходы по категориям'!$E:$E)","v":{"v":2500,"d":"2,500.00р."}},{"$f":"SUMIF('Благотворительность,Спонсорство'!$L:$L,\"=\"&($A26&TEXT(M$4,\"ммм-гг\")),'Благотворительность,Спонсорство'!$D:$D)+SUMIF('Расходы по категориям'!$J:$J,\"=\"&($A26&TEXT(M$4,\"ммм-гг\")),'Расходы по категориям'!$E:$E)","v":{"v":2500,"d":"2,500.00р."}},{"$f":"SUMIF('Благотворительность,Спонсорство'!$L:$L,\"=\"&($A26&TEXT(N$4,\"ммм-гг\")),'Благотворительность,Спонсорство'!$D:$D)+SUMIF('Расходы по категориям'!$J:$J,\"=\"&($A26&TEXT(N$4,\"ммм-гг\")),'Расходы по категориям'!$E:$E)","v":{"v":2500,"d":"2,500.00р."}},{"$f":"SUM(C26:N26)","v":{"v":30000,"d":"30,000.00р."}}]
[]
[12000,"Спонсорство",{"$f":"SUMIF('Благотворительность,Спонсорство'!$L:$L,\"=\"&($A28&TEXT(C$4,\"ммм-гг\")),'Благотворительность,Спонсорство'!$D:$D)+SUMIF('Расходы по категориям'!$J:$J,\"=\"&($A28&TEXT(C$4,\"ммм-гг\")),'Расходы по категориям'!$E:$E)","v":{"v":1000,"d":"1,000.00р."}},{"$f":"SUMIF('Благотворительность,Спонсорство'!$L:$L,\"=\"&($A28&TEXT(D$4,\"ммм-гг\")),'Благотворительность,Спонсорство'!$D:$D)+SUMIF('Расходы по категориям'!$J:$J,\"=\"&($A28&TEXT(D$4,\"ммм-гг\")),'Расходы по категориям'!$E:$E)","v":{"v":1000,"d":"1,000.00р."}},{"$f":"SUMIF('Благотворительность,Спонсорство'!$L:$L,\"=\"&($A28&TEXT(E$4,\"ммм-гг\")),'Благотворительность,Спонсорство'!$D:$D)+SUMIF('Расходы по категориям'!$J:$J,\"=\"&($A28&TEXT(E$4,\"ммм-гг\")),'Расходы по категориям'!$E:$E)","v":{"v":1000,"d":"1,000.00р."}},{"$f":"SUMIF('Благотворительность,Спонсорство'!$L:$L,\"=\"&($A28&TEXT(F$4,\"ммм-гг\")),'Благотворительность,Спонсорство'!$D:$D)+SUMIF('Расходы по категориям'!$J:$J,\"=\"&($A28&TEXT(F$4,\"ммм-гг\")),'Расходы по категориям'!$E:$E)","v":{"v":1000,"d":"1,000.00р."}},{"$f":"SUMIF('Благотворительность,Спонсорство'!$L:$L,\"=\"&($A28&TEXT(G$4,\"ммм-гг\")),'Благотворительность,Спонсорство'!$D:$D)+SUMIF('Расходы по категориям'!$J:$J,\"=\"&($A28&TEXT(G$4,\"ммм-гг\")),'Расходы по категориям'!$E:$E)","v":{"v":1000,"d":"1,000.00р."}},{"$f":"SUMIF('Благотворительность,Спонсорство'!$L:$L,\"=\"&($A28&TEXT(H$4,\"ммм-гг\")),'Благотворительность,Спонсорство'!$D:$D)+SUMIF('Расходы по категориям'!$J:$J,\"=\"&($A28&TEXT(H$4,\"ммм-гг\")),'Расходы по категориям'!$E:$E)","v":{"v":1000,"d":"1,000.00р."}},{"$f":"SUMIF('Благотворительность,Спонсорство'!$L:$L,\"=\"&($A28&TEXT(I$4,\"ммм-гг\")),'Благотворительность,Спонсорство'!$D:$D)+SUMIF('Расходы по категориям'!$J:$J,\"=\"&($A28&TEXT(I$4,\"ммм-гг\")),'Расходы по категориям'!$E:$E)","v":{"v":1000,"d":"1,000.00р."}},{"$f":"SUMIF('Благотворительность,Спонсорство'!$L:$L,\"=\"&($A28&TEXT(J$4,\"ммм-гг\")),'Благотворительность,Спонсорство'!$D:$D)+SUMIF('Расходы по категориям'!$J:$J,\"=\"&($A28&TEXT(J$4,\"ммм-гг\")),'Расходы по категориям'!$E:$E)","v":{"v":1000,"d":"1,000.00р."}},{"$f":"SUMIF('Благотворительность,Спонсорство'!$L:$L,\"=\"&($A28&TEXT(K$4,\"ммм-гг\")),'Благотворительность,Спонсорство'!$D:$D)+SUMIF('Расходы по категориям'!$J:$J,\"=\"&($A28&TEXT(K$4,\"ммм-гг\")),'Расходы по категориям'!$E:$E)","v":{"v":1000,"d":"1,000.00р."}},{"$f":"SUMIF('Благотворительность,Спонсорство'!$L:$L,\"=\"&($A28&TEXT(L$4,\"ммм-гг\")),'Благотворительность,Спонсорство'!$D:$D)+SUMIF('Расходы по категориям'!$J:$J,\"=\"&($A28&TEXT(L$4,\"ммм-гг\")),'Расходы по категориям'!$E:$E)","v":{"v":1000,"d":"1,000.00р."}},{"$f":"SUMIF('Благотворительность,Спонсорство'!$L:$L,\"=\"&($A28&TEXT(M$4,\"ммм-гг\")),'Благотворительность,Спонсорство'!$D:$D)+SUMIF('Расходы по категориям'!$J:$J,\"=\"&($A28&TEXT(M$4,\"ммм-гг\")),'Расходы по категориям'!$E:$E)","v":{"v":1000,"d":"1,000.00р."}},{"$f":"SUMIF('Благотворительность,Спонсорство'!$L:$L,\"=\"&($A28&TEXT(N$4,\"ммм-гг\")),'Благотворительность,Спонсорство'!$D:$D)+SUMIF('Расходы по категориям'!$J:$J,\"=\"&($A28&TEXT(N$4,\"ммм-гг\")),'Расходы по категориям'!$E:$E)","v":{"v":1000,"d":"1,000.00р."}},{"$f":"SUM(C28:N28)","v":{"v":12000,"d":"12,000.00р."}}]
[]
[null,"Итого",{"$f":"SUM(C6:C28)","v":{"v":81075,"d":"81,075.00р."}},{"v":81075,"d":"81,075.00р."},{"v":81075,"d":"81,075.00р."},{"v":81075,"d":"81,075.00р."},{"v":81075,"d":"81,075.00р."},{"v":81075,"d":"81,075.00р."},{"v":81075,"d":"81,075.00р."},{"v":81075,"d":"81,075.00р."},{"v":81075,"d":"81,075.00р."},{"v":81075,"d":"81,075.00р."},{"v":81075,"d":"81,075.00р."},{"v":81075,"d":"81,075.00р."},{"v":972900,"d":"972,900.00р."}]

{"sheet":"Расходы по категориям","index":2,"n_rows":103,"n_cols":10,"rows_kept":103}
["Код главной книги","Дата счета","Счет №","Кем запрошен"," Сумма чека ","Получатель","Назначение чека","Метод распределения","Дата файла","Поле сконструированного ключа"]
[1000,"2005-01-01",100,"Энди Тил",{"v":75075,"d":"75,075.00р."},"Consolidated Messenger ","Система рассылки","Почта","2005-01-04",{"$f":"A2&TEXT(B2,\"ммм-гг\")","v":"1000ммм-гг"}]
[7000,"2005-01-15",101,"Роберт Уолтерс",{"v":2500,"d":"2,500.00р."},"A. Datum Corporation ","2 настольных компьютера","Кредит","2005-01-20","7000ммм-гг"]
[{"$nulls":9},"ммм-гг"]
[{"$nulls":9},"ммм-гг"]
[{"$nulls":9},"ммм-гг"]
[{"$nulls":9},"ммм-гг"]
[{"$nulls":9},"ммм-гг"]
[{"$nulls":9},"ммм-гг"]
[{"$nulls":9},"ммм-гг"]
[{"$nulls":9},"ммм-гг"]
[{"$nulls":9},"ммм-гг"]
[{"$nulls":9},"ммм-гг"]
[{"$nulls":9},"ммм-гг"]
[{"$nulls":9},"ммм-гг"]
[{"$nulls":9},"ммм-гг"]
[{"$nulls":9},"ммм-гг"]
[{"$nulls":9},"ммм-гг"]
[{"$nulls":9},"ммм-гг"]
[{"$nulls":9},"ммм-гг"]
[{"$nulls":9},"ммм-гг"]
[{"$nulls":9},"ммм-гг"]
[{"$nulls":9},"ммм-гг"]
[{"$nulls":9},"ммм-гг"]
[{"$nulls":9},"ммм-гг"]
[{"$nulls":9},"ммм-гг"]
[{"$nulls":9},"ммм-гг"]
[{"$nulls":9},"ммм-гг"]
[{"$nulls":9},"ммм-гг"]
[{"$nulls":9},"ммм-гг"]
[{"$nulls":9},"ммм-гг"]
[{"$nulls":9},"ммм-гг"]
[{"$nulls":9},"ммм-гг"]
[{"$nulls":9},{"$f":"A34&TEXT(B34,\"ммм-гг\")","v":"ммм-гг"}]
[{"$nulls":9},"ммм-гг"]
[{"$nulls":9},"ммм-гг"]
[{"$nulls":9},"ммм-гг"]
[{"$nulls":9},"ммм-гг"]
[{"$nulls":9},"ммм-гг"]
[{"$nulls":9},"ммм-гг"]
[{"$nulls":9},"ммм-гг"]
[{"$nulls":9},"ммм-гг"]
[{"$nulls":9},"ммм-гг"]
[{"$nulls":9},"ммм-гг"]
[{"$nulls":9},"ммм-гг"]
[{"$nulls":9},"ммм-гг"]
[{"$nulls":9},"ммм-гг"]
[{"$nulls":9},"ммм-гг"]
[{"$nulls":9},"ммм-гг"]
[{"$nulls":9},"ммм-гг"]
[{"$nulls":9},"ммм-гг"]
[{"$nulls":9},"ммм-гг"]
[{"$nulls":9},"ммм-гг"]
[{"$nulls":9},"ммм-гг"]
[{"$nulls":9},"ммм-гг"]
[{"$nulls":9},"ммм-гг"]
[{"$nulls":9},"ммм-гг"]
[{"$nulls":9},"ммм-гг"]
[{"$nulls":9},"ммм-гг"]
[{"$nulls":9},"ммм-гг"]
[{"$nulls":9},"ммм-гг"]
[{"$nulls":9},"ммм-гг"]
[{"$nulls":9},"ммм-гг"]
[{"$nulls":9},"ммм-гг"]
[{"$nulls":9},"ммм-гг"]
[{"$nulls":9},{"$f":"A66&TEXT(B66,\"ммм-гг\")","v":"ммм-гг"}]
[{"$nulls":9},"ммм-гг"]
[{"$nulls":9},"ммм-гг"]
[{"$nulls":9},"ммм-гг"]
[{"$nulls":9},"ммм-гг"]
[{"$nulls":9},"ммм-гг"]
[{"$nulls":9},"ммм-гг"]
[{"$nulls":9},"ммм-гг"]
[{"$nulls":9},"ммм-гг"]
[{"$nulls":9},"ммм-гг"]
[{"$nulls":9},"ммм-гг"]
[{"$nulls":9},"ммм-гг"]
[{"$nulls":9},"ммм-гг"]
[{"$nulls":9},"ммм-гг"]
[{"$nulls":9},"ммм-гг"]
[{"$nulls":9},"ммм-гг"]
[{"$nulls":9},"ммм-гг"]
[{"$nulls":9},"ммм-гг"]
[{"$nulls":9},"ммм-гг"]
[{"$nulls":9},"ммм-гг"]
[{"$nulls":9},"ммм-гг"]
[{"$nulls":9},"ммм-гг"]
[{"$nulls":9},"ммм-гг"]
[{"$nulls":9},"ммм-гг"]
[{"$nulls":9},"ммм-гг"]
[{"$nulls":9},"ммм-гг"]
[{"$nulls":9},"ммм-гг"]
[{"$nulls":9},"ммм-гг"]
[{"$nulls":9},"ммм-гг"]
[{"$nulls":9},"ммм-гг"]
[{"$nulls":9},"ммм-гг"]
[{"$nulls":9},"ммм-гг"]
[{"$nulls":9},{"$f":"A98&TEXT(B98,\"ммм-гг\")","v":"ммм-гг"}]
[{"$nulls":9},"ммм-гг"]
[{"$nulls":9},"ммм-гг"]
[{"$nulls":9},"ммм-гг"]
[{"$nulls":9},"ммм-гг"]
[{"$nulls":9},"ммм-гг"]

{"sheet":"Благотворительность,Спонсорство","index":3,"n_rows":109,"n_cols":12,"rows_kept":109}
["Код главной книги","Дата запроса чека","Кем запрошен"," Сумма чека "," Отчисления за предыдущий год ","Получатель","Использование","Кем подтверждено","Категория","Метод распределения","Дата файла","Поле сконструированного ключа"]
[12000,"2005-01-20","Сьюзан У. Итон",{"v":1000,"d":"1,000.00р."},0,"Школа изобразительного искусства ","Стипендии","Ким Ролс","Гуманитарные науки","Чек","2005-01-30",{"$f":"A2&TEXT(B2,\"ммм-гг\")","v":"12000ммм-гг"}]
[11000,"2005-02-15","Сьюзан У. Итон",{"v":2500,"d":"2,500.00р."},0,"Wingtip Toys ","Сообщество","Кэти Флуд","Сообщество","Чек","2005-03-01","11000ммм-гг"]
[{"$nulls":11},"ммм-гг"]
[{"$nulls":11},"ммм-гг"]
[{"$nulls":11},"ммм-гг"]
[{"$nulls":11},"ммм-гг"]
[{"$nulls":11},"ммм-гг"]
[{"$nulls":11},"ммм-гг"]
[{"$nulls":11},"ммм-гг"]
[{"$nulls":11},"ммм-гг"]
[{"$nulls":11},"ммм-гг"]
[{"$nulls":11},"ммм-гг"]
[{"$nulls":11},"ммм-гг"]
[{"$nulls":11},"ммм-гг"]
[{"$nulls":11},"ммм-гг"]
[{"$nulls":11},"ммм-гг"]
[{"$nulls":11},"ммм-гг"]
[{"$nulls":11},"ммм-гг"]
[{"$nulls":11},"ммм-гг"]
[{"$nulls":11},"ммм-гг"]
[{"$nulls":11},"ммм-гг"]
[{"$nulls":11},"ммм-гг"]
[{"$nulls":11},"ммм-гг"]
[{"$nulls":11},"ммм-гг"]
[{"$nulls":11},"ммм-гг"]
[{"$nulls":11},"ммм-гг"]
[{"$nulls":11},"ммм-гг"]
[{"$nulls":11},"ммм-гг"]
[{"$nulls":11},"ммм-гг"]
[{"$nulls":11},"ммм-гг"]
[{"$nulls":11},"ммм-гг"]
[{"$nulls":11},"ммм-гг"]
[{"$nulls":11},{"$f":"A34&TEXT(B34,\"ммм-гг\")","v":"ммм-гг"}]
[{"$nulls":11},"ммм-гг"]
[{"$nulls":11},"ммм-гг"]
[{"$nulls":11},"ммм-гг"]
[{"$nulls":11},"ммм-гг"]
[{"$nulls":11},"ммм-гг"]
[{"$nulls":11},"ммм-гг"]
[{"$nulls":11},"ммм-гг"]
[{"$nulls":11},"ммм-гг"]
[{"$nulls":11},"ммм-гг"]
[{"$nulls":11},"ммм-гг"]
[{"$nulls":11},"ммм-гг"]
[{"$nulls":11},"ммм-гг"]
[{"$nulls":11},"ммм-гг"]
[{"$nulls":11},"ммм-гг"]
[{"$nulls":11},"ммм-гг"]
[{"$nulls":11},"ммм-гг"]
[{"$nulls":11},"ммм-гг"]
[{"$nulls":11},"ммм-гг"]
[{"$nulls":11},"ммм-гг"]
[{"$nulls":11},"ммм-гг"]
[{"$nulls":11},"ммм-гг"]
[{"$nulls":11},"ммм-гг"]
[{"$nulls":11},"ммм-гг"]
[{"$nulls":11},"ммм-гг"]
[{"$nulls":11},"ммм-гг"]
[{"$nulls":11},"ммм-гг"]
[{"$nulls":11},"ммм-гг"]
[{"$nulls":11},"ммм-гг"]
[{"$nulls":11},"ммм-гг"]
[{"$nulls":11},"ммм-гг"]
[{"$nulls":11},"ммм-гг"]
[{"$nulls":11},{"$f":"A66&TEXT(B66,\"ммм-гг\")","v":"ммм-гг"}]
[{"$nulls":11},"ммм-гг"]
[{"$nulls":11},"ммм-гг"]
[{"$nulls":11},"ммм-гг"]
[{"$nulls":11},"ммм-гг"]
[{"$nulls":11},"ммм-гг"]
[{"$nulls":11},"ммм-гг"]
[{"$nulls":11},"ммм-гг"]
[{"$nulls":11},"ммм-гг"]
[{"$nulls":11},"ммм-гг"]
[{"$nulls":11},"ммм-гг"]
[{"$nulls":11},"ммм-гг"]
[{"$nulls":11},"ммм-гг"]
[{"$nulls":11},"ммм-гг"]
[{"$nulls":11},"ммм-гг"]
[{"$nulls":11},"ммм-гг"]
[{"$nulls":11},"ммм-гг"]
[{"$nulls":11},"ммм-гг"]
[{"$nulls":11},"ммм-гг"]
[{"$nulls":11},"ммм-гг"]
[{"$nulls":11},"ммм-гг"]
[{"$nulls":11},"ммм-гг"]
[{"$nulls":11},"ммм-гг"]
[{"$nulls":11},"ммм-гг"]
[{"$nulls":11},"ммм-гг"]
[{"$nulls":11},"ммм-гг"]
[{"$nulls":11},"ммм-гг"]
[{"$nulls":11},"ммм-гг"]
[{"$nulls":11},"ммм-гг"]
[{"$nulls":11},"ммм-гг"]
[{"$nulls":11},"ммм-гг"]
[{"$nulls":11},"ммм-гг"]
[{"$nulls":11},{"$f":"A98&TEXT(B98,\"ммм-гг\")","v":"ммм-гг"}]
[{"$nulls":11},"ммм-гг"]
[{"$nulls":11},"ммм-гг"]
[{"$nulls":11},"ммм-гг"]
[{"$nulls":11},"ммм-гг"]
[{"$nulls":11},"ммм-гг"]
[{"$nulls":11},"ммм-гг"]
[{"$nulls":11},"ммм-гг"]
[{"$nulls":11},"ммм-гг"]
[{"$nulls":11},"ммм-гг"]
[{"$nulls":11},"ммм-гг"]
[{"$nulls":11},"ммм-гг"]